Cogmind - Beta 13 @@@ ROGUE MODE // 2024.03.08 @ 12:02:38 Player: Kaz Result: Destroyed by S-27 Virus with Autogun Performance ------------- Evolutions (3) 1500 Regions Visited (6) 1200 Robots Destroyed (141) 705 Value Destroyed (4597) 4597 Prototype IDs (2) 40 Alien Tech Used (0) 0 Bonus (600) 600 TOTAL SCORE: 8642 Bonus ------- High Alert Combat Kills 600 Cogmind --------- Core Integrity 0/700 Matter 213/500 Energy 150/150 System Corruption 13% Temperature Cool (6) Movement Rolling (123) Ox2 Location -7/Storage Parts ------- > --- POWER (1) -------- Micro Nuclear Core > --- PROPULSION (3) --- Compact Wheel Armored Wheel Armored Wheel > --- UTILITY (6) ------ Improved Heat Sink Huge Storage Unit High-capacity Matter Pod Hardened Light Armor Plating Layered Light Armor Plating > --- WEAPON (3) ------- Autogun Autogun Autogun > --- INVENTORY (25) --- Improved Ion Engine Cooled Ion Engine Cooled Ion Engine Light Nuclear Core Light Nuclear Core Micro Nuclear Core Compact Wheel Armored Wheel Armored Wheel High-capacity Storage Unit High-capacity Matter Pod (200) Light Armor Plating Hardened Light Armor Plating Improved Light Armor Plating Beamcaster Autogun Autogun Gauss Rifle Assault Cannon Flak Cannon Heavy Flail Peak State ------------ > --- POWER ------------ Improved Deuterium Engine > --- PROPULSION ------- Armored Wheel Armored Wheel Armored Wheel > --- UTILITY ---------- Huge Storage Unit High-capacity Matter Pod Advanced Targeting Computer Core Shielding Improved Medium Armor Plating Field Recycling Unit > --- WEAPON ----------- Heavy Assault Rifle Autogun Assault Cannon > --- INVENTORY -------- Improved Ion Engine Cooled Ion Engine Cooled Ion Engine Light Nuclear Core Micro Nuclear Core Armored Wheel Armored Wheel Armored Wheel High-capacity Storage Unit High-capacity Matter Pod Light Armor Plating Medium Armor Plating Medium Armor Plating Hardened Light Armor Plating Hardened Light Armor Plating Hardened Light Armor Plating Hardened Medium Armor Plating Layered Light Armor Plating Beamcaster Autogun Autogun Gauss Rifle Assault Cannon Flak Cannon [Rating: 35] Favorites ----------- Power Improved Ion Engine Engine Improved Ion Engine Power Core Light Nuclear Core Propulsion Armored Wheel Wheel Armored Wheel Utility High-capacity Matter Pod Device Field Recycling Unit Storage High-capacity Matter Pod Processor Advanced Targeting Computer Protection Hardened Medium Armor Plating Weapon Autogun Energy Gun Improved Medium Laser Ballistic Gun Autogun Ballistic Cannon Assault Cannon Build | -11 -10 -10 -9 -8 -7 -7 ------- Run | Yrd Mat Min Mat Mat Fac Sto Slots Evolved 6 | . . . 2 2 2 . Power . | . . . . . . . Propulsion 1 | . . . . 1 . . Utility 4 | . . . 1 1 2 . Weapon 1 | . . . 1 . . . Parts Attached 109 | 7 18 2 21 23 35 3 Power 16 | 1 2 . 4 4 5 . Engine 9 | 1 1 . 3 2 2 . Core 7 | . 1 . 1 2 3 . Reactor . | . . . . . . . Propulsion 18 | 2 2 2 3 3 5 1 Treads . | . . . . . . . Leg . | . . . . . . . Wheel 18 | 2 2 2 3 3 5 1 Hover . | . . . . . . . Flight . | . . . . . . . Utility 36 | 1 7 . 5 8 13 2 Device 2 | . . . . 1 1 . Storage 9 | 1 7 . . 1 . . Processor 1 | . . . . . 1 . Hackware . | . . . . . . . Protection 24 | . . . 5 6 11 2 Artifact . | . . . . . . . Weapon 39 | 3 7 . 9 8 12 . Energy Gun 1 | . 1 . . . . . Energy Cannon . | . . . . . . . Ballistic Gun 34 | 3 6 . 9 8 8 . Ballistic Cannon 4 | . . . . . 4 . Launcher . | . . . . . . . Special Weapon . | . . . . . . . Impact Weapon . | . . . . . . . Slashing Weapon . | . . . . . . . Piercing Weapon . | . . . . . . . Special Melee Weapon . | . . . . . . . Unidentified Prototypes 2 | . 1 . . 1 . . Parts Lost 29 | . 1 . 1 7 18 2 Power 4 | . 1 . . 2 1 . Propulsion 4 | . . . . 1 3 . Utility 11 | . . . 1 1 7 2 Weapon 10 | . . . . 3 7 . Highest Loss Streak 9 | . 1 . 1 3 9 2 To Critical Strikes . | . . . . . . . Average Slot Usage (%) 97 | . 96 100 98 99 95 99 Engine 5 | . 7 14 8 2 4 . Core 4 | . 5 . 2 6 2 7 Wheel 24 | . 27 28 21 26 20 23 Device 3 | . . . . 8 5 7 Storage 20 | . 26 28 22 18 15 15 Processor 1 | . . . . . 5 . Protection 10 | . . . 10 9 17 22 Ballistic Gun 27 | . 27 28 32 26 19 23 Naked Turns . | . . . . . . . Heaviest Build 123 | 12 99 53 66 117 123 117 Greatest Support 40 | 20 26 26 24 36 40 40 Greatest Overweight (x) 8 | . 3 2 4 4 8 2 Average Overweight (x) 2 | . 1 2 2 3 3 2 Largest Inventory Capacity 25 | 8 25 20 20 25 25 25 Average Capacity 21 | 7 17 20 20 24 25 25 Most Carried 25 | 1 20 20 20 25 25 22 Average Carried 19 | . 14 20 19 21 22 21 Final Capacity 25 | 8 20 20 20 25 25 25 Final Carried 24 | 1 20 20 20 24 20 21 Class Distribution -------------------- 65% | Tank 21% | Mutant 9% | Scavenger-Tank Dominant Class ---------------- Mutant | -10/Materials Mutant | -10/Mines Tank | -9/Materials Tank | -8/Materials Tank | -7/Factory Scavenger-Tank | -7/Storage Resources | -11 -10 -10 -9 -8 -7 -7 ----------- Run | Yrd Mat Min Mat Mat Fac Sto Matter Collected 5287 | 213 572 43 1446 1443 1540 30 Remotely . | . . . . . . . Salvage Created 5755 | . 626 43 1716 1733 1587 50 Parts 313 | . 40 4 106 90 68 5 Haulers Intercepted 11 | . 2 . 6 2 1 . Recyclers Shooed 6 | . 1 . . 1 4 . Parts Field Recycled 47 | . . . . 42 5 . Retrieved Matter 290 | . . . . 279 11 . Parts Self-Destructed . | . . . . . . . Prevented . | . . . . . . . Kills | -11 -10 -10 -9 -8 -7 -7 ------- Run | Yrd Mat Min Mat Mat Fac Sto Combat Hostiles Destroyed 110 | . 12 3 25 34 34 2 Guns 99 | . 12 3 25 34 23 2 Cannons 9 | . . . . . 9 . AOE 2 | . . . . . 2 . Classes Destroyed 13 | . 5 . 2 5 1 . Worker 4 | . . . 1 3 . . Builder 5 | . . . . 1 4 . Hauler 11 | . 2 . 6 2 1 . Recycler 3 | . 1 . 1 . 1 . Watcher 9 | . 2 . 5 1 1 . Swarmer 21 | . 3 3 . 6 7 2 Grunt 62 | . 9 . 16 15 22 . Brawler 4 | . . . . 3 1 . Duelist 2 | . . . . 2 . . Sentry 16 | . . . 9 6 1 . Specialist 1 | . . . . 1 . . Hunter 1 | . . . . 1 . . Programmer 3 | . . . . . 3 . Best Kill Streak 8 | . 3 3 4 6 8 2 Combat Bots Only 6 | . 3 3 3 4 6 2 Max Kills in Single Turn 2 | . 1 2 2 2 2 1 Gunslinging 1 | . . 1 . 1 . . Exploded 2 | . . . . . 2 . Melee . | . . . . . . . Uniques/NPCs Destroyed . | . . . . . . . Combat | -11 -10 -10 -9 -8 -7 -7 -------- Run | Yrd Mat Min Mat Mat Fac Sto Hostile Shots Fired 642 | . 60 14 107 178 260 23 Missed 153 | . 19 6 24 44 58 2 Damage Taken 7378 | . 472 60 1078 2058 3393 317 Core 1144 | . 146 14 153 129 655 47 Absorbed by Shields . | . . . . . . . Redirected to Shielding 42 | . . . . . 42 . Regen/Repaired (Parts) 374 | . 18 . 166 . 190 . Core Remaining (%) 68 | 100 . 36 61 76 . . Volleys Fired 427 | . 56 5 100 138 118 10 Largest 3 | . 2 2 3 3 3 3 Hottest 111 | . 40 40 66 69 111 69 Shots Fired 1199 | . 112 10 299 411 337 30 Gun 1148 | . 112 10 299 411 286 30 Cannon 51 | . . . . . 51 . Launcher . | . . . . . . . Special . | . . . . . . . Kinetic 1199 | . 112 10 299 411 337 30 Thermal . | . . . . . . . Explosive . | . . . . . . . Electromagnetic . | . . . . . . . Robot Hit Streak 17 | . 11 2 8 17 14 5 Robot Miss Streak 11 | . 3 5 5 11 7 4 Penetration Max . | . . . . . . . Secondary Targets 12 | . . 1 2 3 5 1 Max Gunslinging Chain 1 | . . 1 1 1 1 1 Shots Hit Robots 682 | . 73 3 155 228 212 11 Core Hits 285 | . 32 3 66 92 88 4 Critical Kills 1 | . . . . . 1 . Critical Parts Destroyed 2 | . . . . 2 . . Critical Strikes 7 | . . . . 2 5 . Destroy 3 | . . . . 2 1 . Blast 4 | . . . . . 4 . Melee Attacks . | . . . . . . . Impact . | . . . . . . . Slashing . | . . . . . . . Piercing . | . . . . . . . Sneak Attacks . | . . . . . . . Combat Hostiles . | . . . . . . . Follow-up Attacks . | . . . . . . . Damage Inflicted 10979 | . 779 55 2332 3462 4177 174 Guns 9721 | . 779 55 2332 3449 2932 174 Cannons 653 | . . . . . 653 . Explosions 592 | . . . . . 592 . Melee . | . . . . . . . Ramming 13 | . . . . 13 . . Kinetic 10374 | . 779 55 2332 3449 3585 174 Thermal . | . . . . . . . Explosive 592 | . . . . . 592 . Electromagnetic . | . . . . . . . Impact . | . . . . . . . Slashing . | . . . . . . . Piercing . | . . . . . . . Highest Corruption 13 | . . . 1 2 10 13 Average Corruption 3 | . . . 1 2 4 11 Corruption Purged . | . . . . . . . Corruption Blocked . | . . . . . . . Effects 52 | . . . 2 15 25 10 Message Errors 8 | . . . . 2 3 3 Matter Fused 10 | . . . . 1 8 1 Heat Flow Errors 4 | . . . . 1 1 2 Energy Discharges 6 | . . . . 2 4 . Parts Rejected 1 | . . . . . 1 . Data Loss (minor) 11 | . . . 1 4 4 2 Data Loss (major) 2 | . . . . 1 1 . Misfires 3 | . . . . 1 1 1 Alerts 3 | . . . . 2 1 . Weapon Failures 4 | . . . 1 1 1 1 Overload Shots . | . . . . . . . Overflow Damage 91 | . . . . . 91 . Projectiles 3 | . . . . . 3 . Explosions 88 | . . . . . 88 . Melee . | . . . . . . . Knockbacks 3 | . . . . . 3 . Impact . | . . . . . . . Kinetic 3 | . . . . . 3 . Secondary . | . . . . . . . Self-Inflicted Damage 94 | . . . . 6 88 . Shots 1 | . . . . . 1 . Rammed 2 | . . . . 2 . . Targets Rammed 2 | . . . . 2 . . Kicked . | . . . . . . . Crushed . | . . . . . . . Highest Temperature 564 | . 31 . 198 407 564 242 Average Temperature 100 | . 10 . 39 95 165 63 Received Heat Transfer 2526 | . 201 . 513 801 1011 . Effects 33 | . . . . 8 25 . Shutdowns 8 | . . . . 1 7 . Energy Bleed 7 | . . . . 3 4 . Interference 4 | . . . . 3 1 . Matter Decay 2 | . . . . 1 1 . Short Circuit 1 | . . . . . 1 . Damage (minor) 2 | . . . . . 2 . Damage (major) 6 | . . . . . 6 . Damage (core) 3 | . . . . . 3 . Siege Activations . | . . . . . . . Robots Corrupted . | . . . . . . . Combat Hostiles . | . . . . . . . Parts Fried . | . . . . . . . Impact Corruptions . | . . . . . . . Robots Melted . | . . . . . . . Combat Hostiles . | . . . . . . . Parts Melted 1 | . . . . 1 . . Heat Transferred . | . . . . . . . Parts Sabotaged . | . . . . . . . Parts Stolen . | . . . . . . . Parts Stripped . | . . . . . . . Power Chain Reactions . | . . . . . . . Alert | -11 -10 -10 -9 -8 -7 -7 ------- Run | Yrd Mat Min Mat Mat Fac Sto Peak Influence 809 | . 221 74 475 714 809 374 Initial 329 | . . 4 28 195 324 329 Average 319 | . 90 69 239 417 529 329 Maximum Alert Level 3 | . 1 . 2 3 3 1 Low Security (%) 33 | 100 88 100 41 12 . . Level 1 35 | . 11 . 43 37 38 100 Level 2 26 | . . . 14 46 46 . Level 3 4 | . . . . 4 15 . Level 4 . | . . . . . . . Level 5 . | . . . . . . . High Security . | . . . . . . . Max Security . | . . . . . . . Squads Dispatched 24 | . 3 1 4 7 9 . Investigation 6 | . 1 1 3 . 1 . Extermination 2 | . . . . . 2 . Reinforcement 12 | . 2 . 1 4 5 . Assault 4 | . . . . 3 1 . Garrison . | . . . . . . . Intercept . | . . . . . . . Searches Triggered . | . . . . . . . Construction Impeded . | . . . . . . . Haulers Reinforced 2 | . . . . . 2 . Active Scanning Responses . | . . . . . . . Cargo Convoy Interrupts . | . . . . . . . Stealth | -11 -10 -10 -9 -8 -7 -7 --------- Run | Yrd Mat Min Mat Mat Fac Sto Distress Signals 11 | . 1 . 2 5 3 . Communications Jammed . | . . . . . . . Distress Signals . | . . . . . . . Times Spotted 173 | . 18 2 43 59 46 5 Peak Tracking Total 8 | . 5 2 4 5 8 4 Tactical Retreats 11 | . 1 . 1 5 3 1 Traps | -11 -10 -10 -9 -8 -7 -7 ------- Run | Yrd Mat Min Mat Mat Fac Sto Traps Triggered 10 | . 2 . 3 1 2 2 Indirectly . | . . . . . . . Trap Hack Attempts . | . . . . . . . Triggered . | . . . . . . . Disarmed . | . . . . . . . Reprogrammed . | . . . . . . . Reused . | . . . . . . . Traps Extracted . | . . . . . . . Installed . | . . . . . . . Triggered . | . . . . . . . Machines | -11 -10 -10 -9 -8 -7 -7 ---------- Run | Yrd Mat Min Mat Mat Fac Sto Machines Disabled 10 | . . . 2 1 7 . Max in Single Turn 3 | . . . 1 1 3 . Garrison Access 1 | . . . . 1 . . Machines Repaired . | . . . . . . . Machines Dismantled . | . . . . . . . Machines Sabotaged . | . . . . . . . Overloaded Fab Kills . | . . . . . . . Hacking | -11 -10 -10 -9 -8 -7 -7 --------- Run | Yrd Mat Min Mat Mat Fac Sto Machines Accessed 36 | . 8 1 15 4 6 2 Terminals 22 | . 5 . 9 3 4 1 Fabricators 1 | . . . . . 1 . Repair Stations 4 | . 1 . 2 . 1 . Recycling Units 5 | . 2 . 2 . . 1 Scanalyzers 3 | . . . 2 1 . . Garrison Access . | . . . . . . . Total Hacks 81 | . 17 1 36 10 15 2 Successful 55 | . 11 1 21 9 11 2 Failed 26 | . 6 . 15 1 4 . Catastrophic 1 | . . . 1 . . . Database Lockouts . | . . . . . . . Manual . | . . . . . . . Terminals 50 | . 12 . 23 6 8 1 Fabricators 3 | . . . . . 3 . Repair Stations 14 | . 3 . 7 . 4 . Recycling Units 5 | . 2 . 2 . . 1 Scanalyzers 8 | . . . 4 4 . . Garrison Access . | . . . . . . . Terminal Hacks 29 | . 7 1 10 5 5 1 Record 15 | . 2 . 4 4 5 . Robot Analysis 1 | . 1 . . . . . Open Door 2 | . . 1 . . . 1 Emergency Access Points 1 | . 1 . . . . . Locate Traps 6 | . 2 . 4 . . . Maintenance Status 1 | . . . 1 . . . Recall Investigation 1 | . . . 1 . . . Registered Components 1 | . 1 . . . . . Zone Layout 1 | . . . . 1 . . Fabricator Hacks 2 | . . . . . 2 . Load Schematic 1 | . . . . . 1 . Build 1 | . . . . . 1 . Repair Station Hacks 11 | . 2 . 5 . 4 . Scan Component 6 | . 1 . 3 . 2 . Repair 5 | . 1 . 2 . 2 . Recycling Unit Hacks 5 | . 2 . 2 . . 1 Report Inventory 5 | . 2 . 2 . . 1 Scanalyzer 8 | . . . 4 4 . . Insert Component 4 | . . . 2 2 . . Analyze 4 | . . . 2 2 . . Garrison Access Hacks . | . . . . . . . Unauthorized Hacks . | . . . . . . . Terminals . | . . . . . . . Fabricators . | . . . . . . . Repair Stations . | . . . . . . . Recycling Units . | . . . . . . . Scanalyzers . | . . . . . . . Garrison Access . | . . . . . . . Data Cores Recovered . | . . . . . . . Used . | . . . . . . . Hacking Detections 29 | . 6 . 13 4 6 . Full Trace Events 5 | . . . 3 1 1 . Feedback Events . | . . . . . . . Feedback Blocked . | . . . . . . . Robot Schematics Acquired . | . . . . . . . Robots Built . | . . . . . . . Authchips . | . . . . . . . Time . | . . . . . . . Total Robot Build Rating . | . . . . . . . Part Schematics Acquired 4 | . . . 2 2 . . Parts Built 2 | . . . . . 2 . Authchips . | . . . . . . . Time 62 | . . . . . 62 . Total Part Build Rating 4 | . . . . . 4 . Parts Repaired 5 | . 1 . 2 . 2 . Time 141 | . 13 . 64 . 64 . Parts Recycled . | . . . . . . . Recycled Matter . | . . . . . . . Retrieved Matter . | . . . . . . . Retrieved Components . | . . . . . . . Parts Scanalyzed 4 | . . . 2 2 . . Part Schematics Acquired 4 | . . . 2 2 . . Parts Damaged . | . . . . . . . Bothacking | -11 -10 -10 -9 -8 -7 -7 ------------ Run | Yrd Mat Min Mat Mat Fac Sto Used RIF Installer . | . . . . . . . Robots Hacked . | . . . . . . . Non-combat . | . . . . . . . Combat . | . . . . . . . Robot Hacks Applied . | . . . . . . . Relay Couplers Released 4 | . . . . 4 . . Machine Destruction 4 | . . . . 4 . . Fabnet Peak Effective % . | . . . . . . . Robots Rewired . | . . . . . . . Allies Hacked . | . . . . . . . Hacks Repelled . | . . . . . . . Allies | -11 -10 -10 -9 -8 -7 -7 -------- Run | Yrd Mat Min Mat Mat Fac Sto Total Allies . | . . . . . . . Largest Group . | . . . . . . . Highest-Rated Group . | . . . . . . . Highest-Rated Ally . | . . . . . . . Total Orders . | . . . . . . . Ally Attacks . | . . . . . . . Total Damage . | . . . . . . . Kills . | . . . . . . . Allies Corrupted . | . . . . . . . Allies Melted . | . . . . . . . Intel | -11 -10 -10 -9 -8 -7 -7 ------- Run | Yrd Mat Min Mat Mat Fac Sto Robot Analysis Total 1 | . 1 . . . . . Derelict Logs Recovered 1 | . . 1 . . . . Drone Launches . | . . . . . . . Drone Recoveries . | . . . . . . . Exploration | -11 -10 -10 -9 -8 -7 -7 ------------- Run | Yrd Mat Min Mat Mat Fac Sto Turns Passed 7346 | 43 1352 123 2139 1890 1602 197 Spaces Moved 4208 | 44 917 83 1264 1015 761 124 Core 8 | 8 . . . . . . Treads . | . . . . . . . Legs . | . . . . . . . Wheels 4200 | 36 917 83 1264 1015 761 124 Hover . | . . . . . . . Flight . | . . . . . . . Fastest Speed 50 | 50 80 120 120 131 123 123 Average Speed 123 | 74 108 120 120 132 136 123 Slowest Speed 210 | 80 135 120 150 150 210 123 Overloaded Moves . | . . . . . . . Propulsion Burnouts . | . . . . . . . Robots Hopped . | . . . . . . . Cave-ins Triggered . | . . . . . . . Exploration Rate (%) 47 | 4 98 21 94 58 21 33 Regions Visited 6 Branch Regions 2 Pre-discovered Areas 1 | . . 1 . . . . Known Exits Taken . | . . . . . . . Unknown Exits Taken 6 | 1 1 1 1 1 1 . Scrap Searched . | . . . . . . . Spaces Dug . | . . . . . . . Terrain Destroyed 47 | . . . . . 47 . Melee . | . . . . . . . Projectile 4 | . . . . . 4 . AOE 43 | . . . . . 43 . Terrain Rammed . | . . . . . . . Walls Destroyed . | . . . . . . . Machines Disabled . | . . . . . . . Actions | -11 -10 -10 -9 -8 -7 -7 --------- Run | Yrd Mat Min Mat Mat Fac Sto Total 5533 | 50 1175 95 1671 1289 1102 151 Wait 673 | . 139 6 256 86 173 13 Move 4202 | 43 916 82 1263 1014 760 124 Hop . | . . . . . . . Pick Up 72 | . 29 . 15 15 12 1 Fast Attach 17 | 6 2 . 3 2 4 . Attach 33 | . 1 . 5 7 19 1 Detach . | . . . . . . . Swap 59 | 1 15 2 13 14 12 2 Drop 48 | . 17 . 16 11 4 . Fire 427 | . 56 5 100 138 118 10 Melee . | . . . . . . . Ram 2 | . . . . 2 . . Kick . | . . . . . . . Crush . | . . . . . . . Escape Stasis . | . . . . . . . Rewire . | . . . . . . . Trap . | . . . . . . . Miscellaneous . | . . . . . . . Route ------- -11/Scrapyard -10/Materials (discovered 4 exits: *Mat x3 / *Min) -10/Mines -9/Materials (discovered 5 exits: *Mat x3 / [*Min x2]) -8/Materials (discovered 2 exits: *Fac x2) -7/Factory -7/Storage History --------- Turn | Location | Event 18 | -11/Scrapyard | Discovered new exit (range 16) 44 | -11/Scrapyard | Entered Materials 185 | -10/Materials | Discovered new exit (range 15) 227 | -10/Materials | Discovered new exit (range 15) 337 | -10/Materials | Build established: Mutant 423 | -10/Materials | Discovered new exit (range 7) 595 | -10/Materials | Discovered new exit (range 16) 654 | -10/Materials | Core integrity fell below 50% 1379 | -10/Materials | Repaired Com. Wheel 1396 | -10/Materials | Entered Mines 1421 | -10/Mines | Learned location of Zion (-6) 1452 | -10/Mines | Received a Rocket Launcher from a helpful Derelict 1492 | -10/Mines | Discovered new exit (range 3) 1503 | -10/Mines | Met a Derelict shopkeep closing up shop 1519 | -10/Mines | Entered Materials 1519 | -9/Materials | Evolved 2 slots: Utility x1, Weapon x1 1735 | -9/Materials | Discovered new exit (range 15) 1845 | -9/Materials | Build established: Tank 2245 | -9/Materials | Discovered new exit (range 7) 2625 | -9/Materials | Discovered new exit (range 9) 2635 | -9/Materials | Discovered new exit (range 10) 2928 | -9/Materials | Discovered new exit (range 8) 3071 | -9/Materials | Repaired Arm. Wheel 3288 | -9/Materials | Repaired Arm. Wheel 3658 | -9/Materials | Entered another Materials area 3658 | -8/Materials | Evolved 2 slots: Propulsion x1, Utility x1 4365 | -8/Materials | Discovered new exit (range 10) 4536 | -8/Materials | Lost 3 parts (1p1n1w) 4659 | -8/Materials | Discovered new exit (range 17) 4858 | -8/Materials | First assault squad dispatched 5548 | -8/Materials | Entered Factory 5548 | -7/Factory | Evolved 2 slots: Utility x2 6088 | -7/Factory | Fabricated Arm. Wheel (x2) 6618 | -7/Factory | Lost 9 parts (1p2n3u3w) 6700 | -7/Factory | Core integrity fell below 50% 6700 | -7/Factory | Discovered new exit (range 9) 6701 | -7/Factory | Core integrity fell below 20% 6748 | -7/Factory | First assault squad dispatched 6753 | -7/Factory | Lost 3 parts (1u2w) 6918 | -7/Factory | Repaired Arm. Wheel 6951 | -7/Factory | Repaired Arm. Wheel 7122 | -7/Factory | System corruption reached 10% 7150 | -7/Factory | Entered Storage 7347 | -7/Storage | Destroyed by S-27 Virus with Autogun Last Messages --------------- 07237_ Connecting with Door Terminal... 07238_ System corrupted: Component data lost. 07259_ System corrupted: Matter fused (-9). 07264_ K-01 Serf collects debris. 07269_ Acquired Hvy. Flail. 07271_ K-01 Serf collects debris. 07274_ GU:OANZT:ICPKE 9SS&STOYN 07274_ K-01 Serf collects debris. 07291_ ZSTRH=NSXL#=S28B5Z4ZVTI&8/:S S 07322_ IXIW:6L:ASZ3